Cogmind - Beta 17.1 @@@ ROGUE MODE // 2026.09.12 @ 14:50:29 Player: MOPO3 Result: Destroyed by S-27 Virus with Autogun Performance ------------- Evolutions (6) 3000 Regions Visited (13) 2600 Robots Destroyed (229) 1145 Value Destroyed (8128) 8128 Prototype IDs (22) 440 Alien Tech Used (0) 0 Bonus (2580) 2580 TOTAL SCORE: 17893 Bonus ------- High Alert Combat Kills 237 Follower Combat Kills 846 Met Warlord at Base 500 MAIN.C Attacked Warlord 500 Warlord Defense Kills 660 Friendly Fire -163 Cogmind --------- Core Integrity 0/1150 Matter 295/300 Energy 100/100 System Corruption 22% Temperature Cool (9) Movement Core (1350) Ox26 Location -4/Warlord Parts ------- > --- POWER (2) -------- (None) > --- PROPULSION (4) --- (None) > --- UTILITY (8) ------ Huge Storage Unit > --- WEAPON (5) ------- (None) > --- INVENTORY (25) --- Compact Wheel Advanced Heat Sink Improved Cooling System Medium Matter Pod (100) Enhanced Optical Array Advanced Terrain Scanner Improved Targeting Computer Improved Target Analyzer Advanced Recoil Stabilizer Improved Weapon Cycler Medium Armor Plating Improved Medium Armor Plating Advanced Hardlight Generator Improved Remote Force Field Long-range Tractor Beam Heavy Assault Rifle Minigun Precision Assault Rifle Makeshift Axe Peak State ------------ > --- POWER ------------ Antimatter Reactor Light Antimatter Reactor > --- PROPULSION ------- Compact Wheel Armored Wheel Armored Huge Wheel > --- UTILITY ---------- Advanced Heat Sink Huge Storage Unit Advanced Sensor Array Advanced Signal Interpreter Core Analyzer Layered Heavy Armor Plating Centrium Light Armor Plating > --- WEAPON ----------- Vortex Rail Makeshift Shrapnel Gun Coil Gun Improved KE Penetrator Railgun > --- INVENTORY -------- Antimatter Reactor Light Antimatter Reactor Compact Wheel Advanced Heat Sink Improved Cooling System Medium Matter Pod Enhanced Optical Array Advanced Terrain Scanner Improved Targeting Computer Improved Target Analyzer Advanced Recoil Stabilizer Improved Weapon Cycler Medium Armor Plating Improved Medium Armor Plating Advanced Hardlight Generator Improved Remote Force Field Long-range Tractor Beam Vortex Rail Heavy Assault Rifle Autogun Minigun Precision Assault Rifle Coil Gun Makeshift Axe [Rating: 109] Favorites ----------- Power Light Angular Momentum Engine Engine Light Angular Momentum Engine Power Core Light Nuclear Core Reactor Quantum Reactor Propulsion Armored Huge Wheel Treads Light Treads Wheel Armored Huge Wheel Utility Huge Storage Unit Device Advanced Heat Sink Storage Huge Storage Unit Processor Advanced Signal Interpreter Hackware Improved Hacking Suite Protection Improved Medium Armor Plating Weapon Gauss Rifle Energy Gun Vortex Rail Energy Cannon Vortex Driver Ballistic Gun Gauss Rifle Launcher Heavy Rocket Launcher Impact Weapon Powered Hammer Slashing Weapon Makeshift Axe Build | -11 -10 -9 -8 -7 -6 -6 -6 -6 -6 -5 -4 -4 -4 ------- Run | Yrd Mat Mat Mat Fac Fac Ext Cet Arc Hub Fac Fac Upp War Slots Evolved 12 | . . 2 2 2 2 . . . . 2 2 . . Power 1 | . . . . . . . . . . . 1 . . Propulsion 2 | . . . . . . . . . . 1 1 . . Utility 6 | . . 2 . 2 1 . . . . 1 . . . Weapon 3 | . . . 2 . 1 . . . . . . . . Parts Attached 156 | 8 7 22 9 7 19 13 5 5 3 25 11 5 17 Power 27 | 1 2 8 1 1 2 2 1 . 1 2 2 . 4 Engine 16 | 1 2 7 . 1 2 2 . . . . 1 . . Core 4 | . . 1 1 . . . . . 1 1 . . . Reactor 7 | . . . . . . . 1 . . 1 1 . 4 Propulsion 15 | 2 1 4 . 1 1 1 . . . 3 . . 2 Treads 1 | . . 1 . . . . . . . . . . . Leg . | . . . . . . . . . . . . . . Wheel 14 | 2 1 3 . 1 1 1 . . . 3 . . 2 Hover . | . . . . . . . . . . . . . . Flight . | . . . . . . . . . . . . . . Utility 63 | 2 1 7 3 5 9 7 1 1 1 14 7 3 2 Device 33 | 1 . 2 . 5 5 4 . . 1 8 5 2 . Storage 4 | 1 1 . 1 . 1 . . . . . . . . Processor 7 | . . 2 . . 2 . 1 . . 1 . 1 . Hackware 1 | . . . . . . . . . . 1 . . . Protection 18 | . . 3 2 . 1 3 . 1 . 4 2 . 2 Artifact . | . . . . . . . . . . . . . . Weapon 51 | 3 3 3 5 . 7 3 3 4 1 6 2 2 9 Energy Gun 9 | 3 1 . . . . . . . . . . 2 3 Energy Cannon 1 | . . . . . . . . . . . . . 1 Ballistic Gun 36 | . 2 3 5 . 5 3 2 4 1 6 2 . 3 Ballistic Cannon . | . . . . . . . . . . . . . . Launcher 3 | . . . . . 1 . 1 . . . . . 1 Special Weapon . | . . . . . . . . . . . . . . Impact Weapon 1 | . . . . . 1 . . . . . . . . Slashing Weapon 1 | . . . . . . . . . . . . . 1 Piercing Weapon . | . . . . . . . . . . . . . . Special Melee Weapon . | . . . . . . . . . . . . . . Unidentified Prototypes 15 | . . 1 . . 2 . 1 . 1 . 2 2 6 Parts Lost 61 | . 2 10 . 1 . 4 1 1 4 11 1 . 26 Power 11 | . 1 3 . . . . . . . 1 1 . 5 Propulsion 7 | . . 2 . . . . . . . 1 . . 4 Utility 19 | . . 3 . 1 . 3 1 . 2 3 . . 6 Weapon 24 | . 1 2 . . . 1 . 1 2 6 . . 11 Highest Loss Streak 21 | . 1 2 . 1 . 1 1 1 4 6 1 . 21 To Critical Strikes 1 | . . . . . . . . . . . . . 1 Average Backups 21 | 1 12 19 20 23 22 22 22 22 22 22 23 24 24 Power 1 | . . 2 1 1 . 1 1 1 1 1 1 2 1 Propulsion 1 | . 4 4 1 1 2 2 2 2 2 1 . . . Utility 9 | . 5 5 8 8 9 10 8 8 8 11 12 13 12 Weapon 8 | . 1 7 9 12 9 9 11 11 10 8 9 9 9 Tool/Special . | . . . . . . . . . . . . . . Unused Backups 69 | . . 8 8 7 16 3 1 2 2 3 1 1 17 Power 8 | . . . 3 . 1 . 1 . . . . . 3 Propulsion 5 | . . 2 . . . . . . . 2 . . 1 Utility 29 | . . 3 1 1 8 3 . 1 1 . 1 . 10 Weapon 27 | . . 3 4 6 7 . . 1 1 1 . 1 3 Tool/Special . | . . . . . . . . . . . . . . Average Slot Usage (%) 92 | . 99 96 98 93 92 92 92 92 92 92 84 83 84 Engine 4 | . 13 10 3 1 6 6 1 . . . 5 5 3 Reactor 2 | . . . . . . . 4 6 6 4 1 5 5 Wheel 11 | . 28 21 18 8 6 6 6 6 6 10 9 10 10 Device 18 | . 14 9 9 22 25 25 20 20 19 19 21 15 14 Storage 6 | . 14 11 9 7 6 6 6 6 6 5 5 5 5 Processor 8 | . . 13 9 7 6 6 11 13 13 10 5 9 9 Protection 6 | . . 9 9 7 6 6 6 6 6 4 4 5 5 Energy Gun 1 | . 24 . . . . . . . . . . . 2 Ballistic Gun 26 | . 2 21 34 30 32 32 31 30 32 25 23 21 18 Impact Weapon 1 | . . . . . . . . 1 . 2 2 4 1 Peak Build Rating 109 | 7 9 16 26 45 73 71 81 87 87 98 100 100 109 Average Rating 64 | 5 7 13 22 38 63 68 76 83 86 91 95 96 98 On Entrance 54 | . 7 9 15 26 45 71 69 81 87 73 85 99 97 Avg Prop Armor Cover (%) . | . . . . . . . . . . . . . . Naked Turns . | . . . . . . . . . . . . . . Heaviest Build 166 | 14 48 64 106 119 133 131 136 138 137 142 154 154 166 Greatest Support 56 | 26 32 32 20 28 28 28 28 28 28 40 40 40 56 Greatest Overweight (x) 6 | . 1 6 5 5 4 4 4 4 4 4 4 3 3 Average Overweight (x) 3 | . . 2 3 3 4 4 4 4 4 3 3 3 2 Largest Inventory Capacity 25 | 8 20 20 25 25 25 25 25 25 25 25 25 25 25 Average Capacity 23 | 7 17 20 21 25 25 25 25 25 25 25 25 25 25 Most Carried 25 | 5 18 20 24 25 25 25 25 25 25 25 25 25 25 Average Carried 22 | 1 12 19 20 24 24 24 24 24 24 23 23 24 24 Final Capacity 25 | 8 20 20 25 25 25 25 25 25 25 25 25 25 25 Final Carried 25 | 5 18 20 24 25 25 25 25 25 23 23 25 24 19 Class Distribution -------------------- 30% | Tank 22% | Scavenger-Skirmisher 18% | Scavenger-Tank 15% | Mutant 7% | Skirmisher Dominant Class ---------------- Mutant | -10/Materials Mutant | -9/Materials Tank | -8/Materials Tank | -7/Factory Tank | -6/Factory Scavenger-Tank | -6/Extension Scavenger-Skirmisher | -6/Cetus Scavenger-Skirmisher | -6/Archives Scavenger-Skirmisher | -6/Hub_04(d) Scavenger-Skirmisher | -5/Factory Skirmisher | -4/Factory Tank | -4/Upper Caves Tank | -4/Warlord Resources | -11 -10 -9 -8 -7 -6 -6 -6 -6 -6 -5 -4 -4 -4 ----------- Run | Yrd Mat Mat Mat Fac Fac Ext Cet Arc Hub Fac Fac Upp War Matter Collected 8352 | 266 69 889 664 270 1055 1068 484 565 496 1659 435 68 364 Remotely . | . . . . . . . . . . . . . . Salvage Created 11285 | 125 505 1377 976 345 1163 1261 422 613 1043 2235 678 41 501 Parts 531 | 8 28 96 58 20 54 46 9 30 45 87 25 . 25 Haulers Intercepted 15 | . 1 2 3 3 2 . . . 2 1 1 . . Recyclers Shooed 3 | . . . . . 1 1 . . . 1 . . . Parts Field Recycled . | . . . . . . . . . . . . . . Retrieved Matter . | . . . . . . . . . . . . . . Parts Self-Destructed . | . . . . . . . . . . . . . . Prevented . | . . . . . . . . . . . . . . Parts Restored . | . . . . . . . . . . . . . . Kills | -11 -10 -9 -8 -7 -6 -6 -6 -6 -6 -5 -4 -4 -4 ------- Run | Yrd Mat Mat Mat Fac Fac Ext Cet Arc Hub Fac Fac Upp War Combat Hostiles Destroyed 131 | . 9 28 10 1 9 19 6 4 11 27 3 . 4 Melee 1 | . . . . . . . . . . 1 . . . Guns 121 | . 5 28 10 1 8 19 6 4 11 24 2 . 3 AOE 8 | . 4 . . . 1 . . . . 1 1 . 1 Classes Destroyed 18 | 2 4 2 2 . 2 2 . . . . 1 1 2 Worker 27 | . 2 5 1 3 3 . . . 1 10 2 . . Builder 12 | . . . 1 1 2 . . . 2 4 2 . . Tunneler 2 | 1 . . . . . . . . . . 1 . . Hauler 15 | . 1 2 3 3 2 . . . 2 1 1 . . Recycler 12 | 1 . . 2 . 3 . . . 1 2 3 . . Operator 13 | . . . 1 . 1 . . 9 . 2 . . . Watcher 11 | . 2 4 2 1 1 . 1 . . . . . . Swarmer 8 | . . 7 . . . . . . . . 1 . . Grunt 64 | . 9 12 6 . 2 11 . . 9 15 . . . Brawler 1 | . . . . . . 1 . . . . . . . Duelist 1 | . . . . . . 1 . . . . . . . Protector 3 | . . . . . . . . . . . . . 3 Sentry 26 | . . 9 4 1 1 5 . 4 . 2 . . . Specialist 1 | . . . . . . . . . . . 1 . . Hunter 8 | . . . . . 2 . 2 . 1 1 . . 2 Programmer 18 | . . . . . 4 . . . 1 9 1 . 3 Cetus Guard 4 | . . . . . . . 4 . . . . . . Striker 1 | . . . . . . . . . . . . . 1 Samaritan 1 | . . . . . . . . . . . . 1 . Thug 2 | . . . . . . 2 . . . . . . . Best Kill Streak 6 | 2 3 5 5 5 3 4 4 2 6 6 3 . 4 Combat Bots Only 6 | . 3 4 4 1 2 4 4 2 4 6 1 . 4 Max Kills in Single Turn 3 | 1 3 2 2 2 2 2 1 1 3 2 2 1 1 Gunslinging 1 | . . . . . . . . . . 1 . . . Exploded 2 | . 2 . . . 1 . . . . 1 1 . 1 Melee 1 | . . . . . . . . . . 1 . . . Uniques/NPCs Destroyed . | . . . . . . . . . . . . . . Combat | -11 -10 -9 -8 -7 -6 -6 -6 -6 -6 -5 -4 -4 -4 -------- Run | Yrd Mat Mat Mat Fac Fac Ext Cet Arc Hub Fac Fac Upp War Hostile Shots Fired 898 | . 20 108 32 40 68 111 54 16 92 167 13 . 177 Missed 233 | . 6 26 6 13 14 31 15 2 29 39 5 . 47 Hits 665 | . 14 82 26 27 54 80 39 14 63 128 8 . 130 Melee 21 | . . . . . . 6 . . . . . . 15 Projectile 644 | . 14 82 26 27 54 74 39 14 63 128 8 . 115 AOE 2 | . . . . . . 1 . . . 1 . . . Critical Strikes 35 | . . 4 . . . 2 5 1 5 9 . . 9 Part Disruptions 1 | . . . . . . . . . . . . . 1 Damage Taken 13104 | . 306 1137 392 240 523 814 644 324 1152 3127 374 . 4071 Core 2217 | . 74 183 75 35 40 60 76 21 209 284 . . 1160 Absorbed by Shields 566 | . . . . 83 199 264 20 . . . . . . Regen/Repaired (Parts) 1156 | . . 214 62 . 85 . . . . 720 . . 75 Core Remaining (%) 75 | 100 70 54 86 95 . . . . 52 71 . . . Volleys Fired 404 | 6 29 90 36 18 31 44 25 22 26 54 7 . 16 Largest 5 | 2 2 2 4 4 5 5 5 5 5 5 5 . 5 Hottest 169 | 80 80 46 101 101 147 147 156 167 169 169 158 . 168 Shots Fired 1533 | 12 58 182 141 73 155 220 109 110 129 257 35 . 52 Gun 1527 | 12 58 182 141 73 155 220 105 108 129 257 35 . 52 Cannon . | . . . . . . . . . . . . . . Launcher 6 | . . . . . . . 4 2 . . . . . Special . | . . . . . . . . . . . . . . Kinetic 1442 | . . 182 141 73 155 220 105 108 129 257 35 . 37 Thermal 35 | 6 29 . . . . . . . . . . . . Explosive 6 | . . . . . . . 4 2 . . . . . Electromagnetic 35 | 6 29 . . . . . . . . . . . . Entropic 15 | . . . . . . . . . . . . . 15 Robot Hit Streak 20 | 6 12 20 20 11 16 11 11 12 7 9 11 . 9 Robot Miss Streak 5 | 2 2 4 2 2 3 3 3 4 5 5 1 . 4 Penetration Max 1 | . . . . . 1 1 . . 1 1 . . . Secondary Targets 24 | . . 4 . 1 2 1 2 . 2 9 . . 3 Max Gunslinging Chain 2 | . . 1 . 1 1 1 1 . 1 2 . . 1 Shots Hit Robots 984 | 8 36 123 96 40 94 155 73 75 66 157 25 1 35 Core Hits 407 | 3 23 59 35 16 37 51 27 27 36 66 10 . 17 Critical Kills 16 | . . 1 . . . 6 3 . 1 5 . . . Critical Parts Destroyed 31 | . . 1 . . 3 6 . 2 7 10 . . 2 Critical Strikes 51 | . . 2 . . 3 15 3 2 8 15 . . 3 Destroy 41 | . . 2 . . 2 15 3 1 8 10 . . . Smash 7 | . . . . . 1 . . 1 . 5 . . . Sever 1 | . . . . . . . . . . . . . 1 Detonate 2 | . . . . . . . . . . . . . 2 Melee Attacks 114 | . . . . . 12 . . 6 . 58 16 2 20 Impact 94 | . . . . . 12 . . 6 . 58 16 2 . Slashing 20 | . . . . . . . . . . . . . 20 Piercing . | . . . . . . . . . . . . . . Sneak Attacks 43 | . . . . . 4 . . 6 . 17 7 1 8 Combat Hostiles . | . . . . . . . . . . . . . . Follow-up Attacks . | . . . . . . . . . . . . . . Damage Inflicted 24137 | 98 667 1756 1568 673 2106 2802 1327 2206 1973 5819 1329 111 1702 Guns 18901 | 98 428 1728 1568 670 1669 2802 1327 1648 1973 3729 436 . 825 Cannons . | . . . . . . . . . . . . . . Explosions 1055 | . 239 . . . 48 . . 29 . 232 179 . 328 Melee 4150 | . . . . . 389 . . 529 . 1858 714 111 549 Ramming 31 | . . 28 . 3 . . . . . . . . . Kinetic 18089 | . . 1728 1568 670 1669 2802 1327 1648 1973 3729 436 . 539 Thermal 1188 | 45 404 . . . . . . . . 232 179 . 328 Explosive 77 | . . . . . 48 . . 29 . . . . . Electromagnetic 316 | 53 263 . . . . . . . . . . . . Impact 3601 | . . . . . 389 . . 529 . 1858 714 111 . Slashing 549 | . . . . . . . . . . . . . 549 Piercing . | . . . . . . . . . . . . . . Entropic 286 | . . . . . . . . . . . . . 286 Highest Corruption 21 | . 2 3 . 2 1 1 1 1 4 18 1 1 21 Average Corruption 3 | . 2 2 . 1 1 1 1 1 2 8 1 1 6 Corruption Purged 2 | . . . . . . . . . . 2 . . . Corruption Blocked . | . . . . . . . . . . . . . . Effects 154 | . 4 19 . 9 5 18 5 5 6 64 4 2 13 Message Errors 40 | . 2 6 . 2 3 7 1 2 . 12 1 . 4 Matter Fused 27 | . . 6 . 4 . 1 2 . 2 6 2 1 3 Heat Flow Errors 20 | . . 2 . . 1 3 1 1 . 11 . 1 . Energy Discharges 12 | . 1 . . 2 . 1 . . 2 5 . . 1 Parts Fused 1 | . . . . . . . . . . 1 . . . Data Loss (minor) 21 | . 1 3 . . 1 3 . 2 . 11 . . . Data Loss (major) 9 | . . . . . . 1 1 . . 5 1 . 1 Misfires 8 | . . 2 . 1 . 1 . . . 2 . . 2 Alerts 4 | . . . . . . 1 . . 1 1 . . 1 Misdirections 1 | . . . . . . . . . . . . . 1 Weapon Failures 11 | . . . . . . . . . 1 10 . . . Overload Shots . | . . . . . . . . . . . . . . Overflow Damage 2217 | . 3 . . . 250 . . 359 . 1013 369 110 113 Projectiles . | . . . . . . . . . . . . . . Explosions 88 | . 3 . . . . . . . . 6 . . 79 Melee 2129 | . . . . . 250 . . 359 . 1007 369 110 34 Knockbacks 12 | . . . . . . . . 3 . 8 1 . . Impact 12 | . . . . . . . . 3 . 8 1 . . Kinetic . | . . . . . . . . . . . . . . Secondary . | . . . . . . . . . . . . . . Self-Inflicted Damage 240 | . 87 13 . 1 . . . . . . . . 139 Shots 4 | . 2 . . . . . . . . . . . 2 Rammed 4 | . . 3 . 1 . . . . . . . . . Targets Rammed 4 | . . 3 . 1 . . . . . . . . . Kicked . | . . . . . . . . . . . . . . Crushed . | . . . . . . . . . . . . . . Highest Temperature 394 | 72 177 242 260 56 209 242 231 79 392 378 78 112 394 Average Temperature 52 | 30 51 31 63 23 15 25 76 28 73 79 41 58 104 Received Heat Transfer 2428 | . 102 474 180 37 34 218 . 45 578 477 . . 283 Effects 2 | . . . . . . . . . 1 . . . 1 Shutdowns 1 | . . . . . . . . . . . . . 1 Short Circuit 1 | . . . . . . . . . 1 . . . . Siege Activations . | . . . . . . . . . . . . . . Martial Activations . | . . . . . . . . . . . . . . Shielding Activations . | . . . . . . . . . . . . . . Robots Disrupted . | . . . . . . . . . . . . . . Combat Hostiles . | . . . . . . . . . . . . . . Robots Corrupted 18 | . . . . . 3 . . 3 . 8 3 1 . Combat Hostiles 1 | . . . . . . . . . . 1 . . . Parts Fried 45 | . . . . . 7 . . 13 . 13 12 . . Impact Corruptions 63 | . . . . . 8 . . 10 . 28 12 5 . Robots Melted . | . . . . . . . . . . . . . . Combat Hostiles . | . . . . . . . . . . . . . . Parts Melted . | . . . . . . . . . . . . . . Heat Transferred 1175 | 100 525 . . . . . . . . 200 150 . 200 Parts Sabotaged . | . . . . . . . . . . . . . . Parts Stolen . | . . . . . . . . . . . . . . Parts Stripped . | . . . . . . . . . . . . . . Power Chain Reactions 4 | . 4 . . . . . . . . . . . . Alert | -11 -10 -9 -8 -7 -6 -6 -6 -6 -6 -5 -4 -4 -4 ------- Run | Yrd Mat Mat Mat Fac Fac Ext Cet Arc Hub Fac Fac Upp War Maximum Alert Level 3 | . . 1 1 . . 2 1 . 1 3 1 . . Low Security (%) 73 | 100 100 91 79 100 100 65 . 100 45 42 42 . . Level 1 21 | . . 8 20 . . 9 100 . 54 45 57 . . Level 2 4 | . . . . . . 24 . . . 11 . . . Level 3 . | . . . . . . . . . . . . . . Level 4 . | . . . . . . . . . . . . . . Level 5 . | . . . . . . . . . . . . . . High Security . | . . . . . . . . . . . . . . Max Security . | . . . . . . . . . . . . . . Peak Influence 701 | 5 126 237 267 66 127 581 322 130 300 701 335 . . Initial 335 | . 3 29 97 . 23 50 311 94 23 122 335 . . Average 140 | 1 83 108 147 6 47 211 284 100 167 234 213 . . Influence Increases 6351 | 10 365 879 476 131 606 1288 176 230 450 1344 316 . 80 Destroy 0b10 Robot/C 3060 | . 180 560 200 20 180 820 120 80 220 540 60 . 80 Destroy 0b10 Robot/NC 480 | 10 25 55 50 40 60 20 5 45 30 95 45 . . Destroy Leader 692 | . 46 172 70 18 76 94 10 . 52 132 22 . . Allied During Kill 189 | . . . . . . 188 1 . . . . . . Successful Hack 327 | . 26 15 63 5 60 24 3 . . 93 38 . . Select Force Hacks 330 | . 30 60 60 30 90 . . . . 60 . . . Disable Machine 555 | . . 15 30 15 75 . 30 75 105 150 60 . . Destroy Structure 448 | . 13 2 3 3 20 22 7 30 28 244 76 . . Lose Combat Pursuer 270 | . 45 . . . 45 120 . . 15 30 15 . . Influence Decreases 6351 | 5 299 719 707 83 550 836 497 397 268 909 770 231 80 Entered New Map 1253 | . 2 42 134 . 25 54 245 141 45 128 350 87 . Time Decay 4298 | 5 277 577 423 83 525 498 222 246 183 671 410 144 34 Lost Part 386 | . 20 100 . . . 40 10 10 40 110 10 . 46 Lost Ally 161 | . . . . . . 141 20 . . . . . . Purge Threat 253 | . . . 150 . . 103 . . . . . . . Squads Dispatched 50 | . 2 4 4 4 16 4 1 . 3 9 3 . . Investigation 23 | . 1 2 3 1 6 4 1 . 1 4 . . . Extermination 12 | . . . . 2 4 . . . . 4 2 . . Reinforcement 12 | . 1 2 . . 5 . . . 2 1 1 . . Assault . | . . . . . . . . . . . . . . Garrison 3 | . . . 1 1 1 . . . . . . . . Intercept . | . . . . . . . . . . . . . . Searches Triggered . | . . . . . . . . . . . . . . Construction Impeded . | . . . . . . . . . . . . . . Haulers Reinforced 1 | . . . . . . . . . 1 . . . . Active Scanning Responses . | . . . . . . . . . . . . . . Cargo Convoy Interrupts 1 | . . . . . 1 . . . . . . . . Stealth | -11 -10 -9 -8 -7 -6 -6 -6 -6 -6 -5 -4 -4 -4 --------- Run | Yrd Mat Mat Mat Fac Fac Ext Cet Arc Hub Fac Fac Upp War Distress Signals 13 | . 1 1 2 2 1 2 1 . 2 . . . 1 Communications Jammed 114 | . . . . . . 17 . . 35 62 . . . Distress Signals 114 | . . . . . . 17 . . 35 62 . . . Times Spotted 232 | . 15 40 14 14 19 41 7 8 13 37 4 . 20 Peak Tracking Total 15 | . 3 4 4 4 4 6 5 1 5 5 2 . 15 Tactical Retreats 13 | . 2 . . . 3 5 . . 1 1 1 . . Traps | -11 -10 -9 -8 -7 -6 -6 -6 -6 -6 -5 -4 -4 -4 ------- Run | Yrd Mat Mat Mat Fac Fac Ext Cet Arc Hub Fac Fac Upp War Traps Triggered 22 | . 2 2 . 1 1 7 . . . 5 4 . . Indirectly . | . . . . . . . . . . . . . . Trap Hack Attempts . | . . . . . . . . . . . . . . Triggered . | . . . . . . . . . . . . . . Disarmed . | . . . . . . . . . . . . . . Reprogrammed . | . . . . . . . . . . . . . . Reused . | . . . . . . . . . . . . . . Traps Extracted . | . . . . . . . . . . . . . . Installed . | . . . . . . . . . . . . . . Triggered . | . . . . . . . . . . . . . . Machines | -11 -10 -9 -8 -7 -6 -6 -6 -6 -6 -5 -4 -4 -4 ---------- Run | Yrd Mat Mat Mat Fac Fac Ext Cet Arc Hub Fac Fac Upp War Machines Disabled 38 | . . 1 2 1 5 1 2 5 7 10 4 . . Max in Single Turn 5 | . . 1 1 1 1 . 1 1 2 5 4 . . Garrison Access 3 | . . . . . 2 . . . . . 1 . . Energy Cycler 1 | . . . . . . 1 . . . . . . . Machines Repaired . | . . . . . . . . . . . . . . Machines Dismantled . | . . . . . . . . . . . . . . Machines Sabotaged . | . . . . . . . . . . . . . . Overloaded Fab Kills . | . . . . . . . . . . . . . . Hacking | -11 -10 -9 -8 -7 -6 -6 -6 -6 -6 -5 -4 -4 -4 --------- Run | Yrd Mat Mat Mat Fac Fac Ext Cet Arc Hub Fac Fac Upp War Machines Accessed 99 | . 6 12 10 4 17 15 3 1 2 18 6 1 4 Terminals 56 | . 5 7 5 2 7 15 3 . 2 7 3 . . Fabricators 7 | . . . . . 3 . . . . 3 1 . . Repair Stations 8 | . . 2 1 . 1 . . . . 3 1 . . Recycling Units 11 | . 1 2 2 1 3 . . . . 2 . . . Scanalyzers 6 | . . 1 1 . 1 . . . . 3 . . . Garrison Access 5 | . . . 1 1 2 . . . . . 1 . . Total Hacks 270 | . 16 44 34 6 33 35 5 10 2 62 13 1 9 Successful 152 | . 8 28 24 3 14 11 1 10 1 36 6 1 9 Failed 115 | . 8 15 10 3 19 24 4 . 1 24 7 . . Catastrophic 22 | . . 4 2 1 5 3 1 . . 2 4 . . Database Lockouts 3 | . . 1 . . . . . . . 2 . . . Manual 111 | . 14 23 20 3 9 14 . . 2 17 5 . 4 Terminals 130 | . 14 20 20 3 8 35 5 . 2 18 5 . . Fabricators 13 | . . . . . 4 . . . . 7 2 . . Repair Stations 36 | . . 14 2 . 3 . . . . 13 4 . . Recycling Units 32 | . 2 5 7 2 8 . . . . 8 . . . Scanalyzers 27 | . . 5 3 . 3 . . . . 16 . . . Garrison Access 12 | . . . 2 1 7 . . . . . 2 . . Terminal Hacks 50 | . 3 3 5 1 3 8 1 10 . 6 . 1 9 Record 20 | . 1 . 1 . . 1 1 10 . 4 . . 2 Part Schematic 1 | . 1 . . . . . . . . . . . . Prototype ID Bank 5 | . . . . . . . . . . . . . 5 Open Door 9 | . . . . . 1 5 . . . . . 1 2 Open DSF 5 | . . . . 1 2 . . . . 2 . . . Level Access Points 1 | . . 1 . . . . . . . . . . . Branch Access Points 4 | . 1 2 1 . . . . . . . . . . Repair Station Index 1 | . . . 1 . . . . . . . . . . Scanalyzer Index 1 | . . . 1 . . . . . . . . . . Unreport Threat 2 | . . . 1 . . 1 . . . . . . . Investigation Status 1 | . . . . . . 1 . . . . . . . Fabricator Hacks 7 | . . . . . 2 . . . . 4 1 . . Network Status 3 | . . . . . 2 . . . . 1 . . . Load Schematic 3 | . . . . . . . . . . 2 1 . . Build 1 | . . . . . . . . . . 1 . . . Repair Station Hacks 25 | . . 11 2 . 2 . . . . 8 2 . . Scan Component 13 | . . 6 1 . 1 . . . . 4 1 . . Repair 11 | . . 5 1 . 1 . . . . 4 . . . Refit 1 | . . . . . . . . . . . 1 . . Recycling Unit Hacks 10 | . 1 2 4 1 1 . . . . 1 . . . Report Inventory 8 | . 1 2 2 1 1 . . . . 1 . . . Retrieve Components 2 | . . . 2 . . . . . . . . . . Scanalyzer 20 | . . 3 3 . 1 . . . . 13 . . . Insert Component 4 | . . . . . . . . . . 4 . . . Analyze 6 | . . . . . . . . . . 6 . . . Retrieve Study 10 | . . 3 3 . 1 . . . . 3 . . . Garrison Access Hacks 3 | . . . . . 2 . . . . . 1 . . Seal Access 3 | . . . . . 2 . . . . . 1 . . Unauthorized Hacks 37 | . 4 9 10 1 3 3 . . 1 4 2 . . Terminals 26 | . 3 7 8 . . 3 . . 1 2 2 . . Botnet 21 | . 3 6 5 . . 3 . . . 2 2 . . Skim 4 | . . 1 3 . . . . . . . . . . Sabotage 1 | . . . . . . . . . 1 . . . . Fabricators . | . . . . . . . . . . . . . . Repair Stations . | . . . . . . . . . . . . . . Recycling Units 11 | . 1 2 2 1 3 . . . . 2 . . . Tunnel 11 | . 1 2 2 1 3 . . . . 2 . . . Scanalyzers . | . . . . . . . . . . . . . . Garrison Access . | . . . . . . . . . . . . . . Data Cores Recovered 3 | . . . 1 . . 1 . . . 1 . . . Used . | . . . . . . . . . . . . . . Hacking Detections 72 | . 5 9 9 2 11 12 2 . 1 15 6 . . Full Trace Events 9 | . . . 1 . 1 4 1 . . 2 . . . Feedback Events . | . . . . . . . . . . . . . . Feedback Blocked . | . . . . . . . . . . . . . . Robot Schematics Acquired . | . . . . . . . . . . . . . . Robots Built . | . . . . . . . . . . . . . . Authchips . | . . . . . . . . . . . . . . Time . | . . . . . . . . . . . . . . Total Robot Build Rating . | . . . . . . . . . . . . . . Part Schematics Acquired 4 | . 1 . . . . . . . . 3 . . . Parts Built 1 | . . . . . . . . . . 1 . . . Authchips . | . . . . . . . . . . . . . . Time 187 | . . . . . . . . . . 187 . . . Total Part Build Rating 7 | . . . . . . . . . . 7 . . . Part Studies Acquired 9 | . . 3 3 . 1 . . . . 2 . . . Parts Repaired 11 | . . 5 1 . 1 . . . . 4 . . . Time 393 | . . 148 32 . 14 . . . . 199 . . . Parts Recycled . | . . . . . . . . . . . . . . Recycled Matter . | . . . . . . . . . . . . . . Retrieved Matter . | . . . . . . . . . . . . . . Retrieved Components 19 | . . . 19 . . . . . . . . . . Parts Scanalyzed 4 | . . . . . . . . . . 4 . . . Part Schematics Acquired 3 | . . . . . . . . . . 3 . . . Parts Damaged 1 | . . . . . . . . . . 1 . . . Bothacking | -11 -10 -9 -8 -7 -6 -6 -6 -6 -6 -5 -4 -4 -4 ------------ Run | Yrd Mat Mat Mat Fac Fac Ext Cet Arc Hub Fac Fac Upp War Used RIF Installer . | . . . . . . . . . . . . . . Robots Hacked . | . . . . . . . . . . . . . . Non-combat . | . . . . . . . . . . . . . . Combat . | . . . . . . . . . . . . . . Robot Hacks Applied . | . . . . . . . . . . . . . . Relay Couplers Released . | . . . . . . . . . . . . . . Fabnet Peak Effective % . | . . . . . . . . . . . . . . Robots Rewired . | . . . . . . . . . . . . . . Allies Hacked . | . . . . . . . . . . . . . . Hacks Repelled . | . . . . . . . . . . . . . . Allies | -11 -10 -9 -8 -7 -6 -6 -6 -6 -6 -5 -4 -4 -4 -------- Run | Yrd Mat Mat Mat Fac Fac Ext Cet Arc Hub Fac Fac Upp War Total Allies 12 | . . . . . . 12 . . . . . . . Largest Group 7 | . . . . . . 7 1 . . . . . . Highest-Rated Group 331 | . . . . . . 331 34 . . . . . . Highest-Rated Ally 159 | . . . . . . 159 34 . . . . . . Total Orders . | . . . . . . . . . . . . . . Ally Attacks 133 | . . . . . . 133 . . . . . . . Total Damage 2931 | . . . . . . 2931 . . . . . . . Kills 27 | . . . . . . 27 . . . . . . . Allies Corrupted . | . . . . . . . . . . . . . . Allies Melted 1 | . . . . . . . . . . . . . 1 Intel | -11 -10 -9 -8 -7 -6 -6 -6 -6 -6 -5 -4 -4 -4 ------- Run | Yrd Mat Mat Mat Fac Fac Ext Cet Arc Hub Fac Fac Upp War Active Infowar (turns) 13516 | 12 661 447 . 760 2844 1499 461 531 389 2693 989 446 1784 Sensors 12350 | . . 446 . 497 2844 1270 461 531 389 2693 989 446 1784 Seismic 1483 | 12 661 50 . 760 . . . . . . . . . Jamming 7585 | . . . . . 943 1499 461 531 389 2693 983 14 72 Robot Analysis Total . | . . . . . . . . . . . . . . Derelict Logs Recovered 1 | . . . . . . . . . . . . 1 . Drone Launches . | . . . . . . . . . . . . . . Drone Recoveries . | . . . . . . . . . . . . . . Exploration | -11 -10 -9 -8 -7 -6 -6 -6 -6 -6 -5 -4 -4 -4 ------------- Run | Yrd Mat Mat Mat Fac Fac Ext Cet Arc Hub Fac Fac Upp War Turns Passed 16216 | 77 661 1773 1047 984 2845 1528 461 531 389 2693 989 446 1792 Spaces Moved 8950 | 48 435 974 680 535 1505 722 213 236 163 1322 584 317 1216 Core 4 | 4 . . . . . . . . . . . . . Treads . | . . . . . . . . . . . . . . Legs . | . . . . . . . . . . . . . . Wheels 8946 | 44 435 974 680 535 1505 722 213 236 163 1322 584 317 1216 Hover . | . . . . . . . . . . . . . . Flight . | . . . . . . . . . . . . . . Fastest Speed 50 | 50 90 105 115 145 160 160 160 160 160 125 120 135 123 Average Speed 139 | 87 108 118 124 148 160 160 160 160 160 135 135 135 132 Slowest Speed 160 | 100 115 160 145 160 160 160 160 160 160 160 150 135 135 Overloaded Moves . | . . . . . . . . . . . . . . Propulsion Burnouts . | . . . . . . . . . . . . . . Robots Hopped . | . . . . . . . . . . . . . . Potential Cave-ins 14 | . . . . . . . . . . 2 . . 12 Cave-ins Triggered 3 | . . . . . . . . . . 1 . . 2 Exploration Rate (%) 47 | 3 70 78 53 22 33 73 62 92 14 33 7 33 96 Regions Visited 13 Branch Regions 6 Pre-discovered Areas 11 | . 1 2 2 1 3 . . . . 2 . . . Known Exits Taken 11 | . . 1 1 1 1 1 1 1 1 1 1 1 . Unknown Exits Taken 2 | 1 1 . . . . . . . . . . . . Scrap Searched 2 | . . . . . . . . . . . . 2 . Spaces Dug 69 | . . . . . 6 . . . . 31 9 1 22 Terrain Destroyed 392 | . 11 . . 1 13 12 8 49 32 157 47 1 61 Melee 56 | . . . . . 6 . . . . 31 9 1 9 Projectile 188 | . . . . 1 . 8 6 28 30 73 6 . 36 AOE 142 | . 11 . . . 7 . 2 21 . 53 32 . 16 Terrain Rammed . | . . . . . . . . . . . . . . Walls Destroyed . | . . . . . . . . . . . . . . Machines Disabled . | . . . . . . . . . . . . . . Actions | -11 -10 -9 -8 -7 -6 -6 -6 -6 -6 -5 -4 -4 -4 --------- Run | Yrd Mat Mat Mat Fac Fac Ext Cet Arc Hub Fac Fac Upp War Total 11597 | 66 564 1433 822 697 1847 975 275 318 220 1977 732 332 1339 Wait 1499 | . 77 286 56 115 222 119 20 37 23 438 79 1 26 Move 8937 | 47 434 973 679 534 1504 721 212 235 162 1321 583 316 1216 Hop . | . . . . . . . . . . . . . . Pick Up 169 | 5 14 30 21 10 20 8 6 5 2 25 9 2 12 Fast Attach 63 | 7 2 9 1 1 5 3 . . 1 8 13 2 11 Attach 54 | . . 6 3 3 2 5 1 1 2 16 3 2 10 Detach . | . . . . . . . . . . . . . . Swap 126 | 1 6 12 8 3 24 9 5 7 2 25 12 2 10 Drop 154 | . 2 24 18 12 27 9 6 5 2 16 10 5 18 Fire 404 | 6 29 90 36 18 31 44 25 22 26 54 7 . 16 Melee 114 | . . . . . 12 . . 6 . 58 16 2 20 Ram 4 | . . 3 . 1 . . . . . . . . . Kick . | . . . . . . . . . . . . . . Crush . | . . . . . . . . . . . . . . Escape Stasis 72 | . . . . . . 56 . . . 16 . . . Rewire 1 | . . . . . . 1 . . . . . . . Trap . | . . . . . . . . . . . . . . Miscellaneous . | . . . . . . . . . . . . . . Route ------- -11/Scrapyard -10/Materials (discovered 3 exits: *Mat x2 / *Min) -9/Materials (discovered 4 exits: *Mat x3 / *Min) -8/Materials -7/Factory -6/Factory -6/Extension (discovered 2 exits: *Fac / *Cet) -6/Cetus -6/Archives (discovered 3 exits: *Fac / *Hub x2) -6/Hub_04(d) -5/Factory -4/Factory -4/Upper Caves -4/Warlord (discovered 1 exit: *Pro) History --------- Turn | Location | Event 14 | -11/Scrapyard | Discovered new exit (range 15) 78 | -11/Scrapyard | Entered Materials 265 | -10/Materials | Discovered new exit (range 8) 328 | -10/Materials | Build established: Mutant 392 | -10/Materials | Discovered new exit (range 7) 630 | -10/Materials | Discovered new exit (range 16) 633 | -10/Materials | Identified exit to Mines 739 | -10/Materials | Entered another Materials area 739 | -9/Materials | Evolved 2 slots: Utility x2 754 | -9/Materials | Identified exit to Mines 1438 | -9/Materials | Discovered new exit (range 11) 2065 | -9/Materials | Central database locked down 2147 | -9/Materials | Discovered new exit (range 8) 2222 | -9/Materials | Identified exit to Materials 2279 | -9/Materials | Repaired Autogun+ 2313 | -9/Materials | Repaired Autogun+ 2346 | -9/Materials | Repaired Hvy. Assault Rifle+ 2373 | -9/Materials | Repaired Wheel+ 2404 | -9/Materials | Repaired Lgt. Armor Plating 2512 | -9/Materials | Entered another Materials area 2512 | -8/Materials | Evolved 2 slots: Weapon x2 2588 | -8/Materials | Garrison activated, responded to threat 3103 | -8/Materials | Discovered new exit (range 7) 3219 | -8/Materials | Build established: Tank 3269 | -8/Materials | Repaired Autogun+ 3481 | -8/Materials | Met 7R-MNS 3557 | -8/Materials | Identified exit to Factory 3559 | -8/Materials | Entered Factory 3559 | -7/Factory | Evolved 2 slots: Utility x2 3560 | -7/Factory | Caught up to 7R-MNS 4043 | -7/Factory | Build established: Skirmisher 4334 | -7/Factory | Discovered new exit (range 15) 4354 | -7/Factory | Build established: Tank 4485 | -7/Factory | Garrison activated, responded to threat 4541 | -7/Factory | Identified exit to Factory 4543 | -7/Factory | Entered another Factory area 4543 | -6/Factory | Evolved 2 slots: Utility x1, Weapon x1 4544 | -6/Factory | Caught up to 7R-MNS 4676 | -6/Factory | Garrison activated, responded to threat 4934 | -6/Factory | Build established: Scavenger-Tank 4990 | -6/Factory | Repaired Gauss Rifle+ 5371 | -6/Factory | Cargo convoy interrupted 5675 | -6/Factory | Build established: Tank 6530 | -6/Factory | Found Prototype Launcher 6530 | -6/Factory | Identified Scatter Rocket Array 7375 | -6/Factory | Discovered new exit (range 10) 7386 | -6/Factory | Identified exit to Extension 7388 | -6/Factory | Entered Extension 7678 | -6/Extension | Rescued a captive Derelict 7679 | -6/Extension | Rescued a captive Derelict 7778 | -6/Extension | Build established: Scavenger-Tank 8030 | -6/Extension | Rescued A7 8092 | -6/Extension | Rescued a captive Derelict 8094 | -6/Extension | Rescued a captive Derelict 8142 | -6/Extension | Spotted B-75 Beast 8168 | -6/Extension | Spotted B-75 Beast 8199 | -6/Extension | Allies destroyed B-75 Beast 8358 | -6/Extension | Rescued a captive Derelict 8358 | -6/Extension | Rescued a captive Derelict 8394 | -6/Extension | Energy Cycler disabled 8394 | -6/Extension | Rescued a captive Derelict 8394 | -6/Extension | Rescued a captive Derelict 8395 | -6/Extension | Rescued a captive Derelict 8395 | -6/Extension | Rescued a captive Derelict 8395 | -6/Extension | Rescued a captive Derelict 8397 | -6/Extension | Rescued a captive Derelict 8402 | -6/Extension | Rescued a captive Derelict 8404 | -6/Extension | Rescued a captive Derelict 8583 | -6/Extension | Extracted ID and sensor layout for unrecognized location from A7's data core 8586 | -6/Extension | Lost 4 allies 8869 | -6/Extension | Discovered new exit (range 10) 8870 | -6/Extension | Discovered new exit (range 6) 8894 | -6/Extension | Identified exit to Cetus 8899 | -6/Extension | Identified exit to Factory 8916 | -6/Extension | Entered Cetus 8916 | -6/Cetus | Accompanied by 1 ally 8936 | -6/Cetus | Spotted Cetus Guard 8936 | -6/Cetus | Spotted Cetus Guard 8955 | -6/Cetus | Spotted Cetus Guard 8968 | -6/Cetus | Destroyed Cetus Guard 8975 | -6/Cetus | Spotted Cetus Guard 8978 | -6/Cetus | Destroyed Cetus Guard 8986 | -6/Cetus | Destroyed Cetus Guard 9004 | -6/Cetus | Destroyed Cetus Guard 9183 | -6/Cetus | Cetus Manufacturing Module disabled 9303 | -6/Cetus | Build established: Scavenger-Skirmisher 9353 | -6/Cetus | Discovered new exit (range 15) 9375 | -6/Cetus | Identified exit to Archives 9377 | -6/Cetus | Entered Archives 9548 | -6/Archives | Discovered new exit (range 16) 9584 | -6/Archives | Discovered new exit (range 15) 9594 | -6/Archives | Unable to access archive contents 9610 | -6/Archives | Unable to access archive contents 9629 | -6/Archives | Unable to access archive contents 9655 | -6/Archives | Discovered exit to Factory (range 15) 9879 | -6/Archives | Identified exit to Hub_04(d) 9908 | -6/Archives | Entered Hub_04(d) 9931 | -6/Hub_04(d) | Watched by a mysterious "MATRIX" hacker 10110 | -6/Hub_04(d) | Discovered exit to Factory (range 15) 10255 | -6/Hub_04(d) | Spotted B-75 Beast 10297 | -6/Hub_04(d) | Entered Factory 10297 | -5/Factory | Evolved 2 slots: Propulsion x1, Utility x1 10322 | -5/Factory | Lost 4 parts (2u2w) 10336 | -5/Factory | Repaired KE Penetrator 10366 | -5/Factory | Repaired KE Penetrator 10511 | -5/Factory | Central database locked down 10591 | -5/Factory | Central database locked down 10838 | -5/Factory | Identified exit to DSF 11343 | -5/Factory | Fabricated Adv. KE Penetrator (x1) 12056 | -5/Factory | System corruption reached 10% 12187 | -5/Factory | Repaired Adv. KE Penetrator 12232 | -5/Factory | Repaired Arm. Huge Wheel+ 12310 | -5/Factory | Crushed by falling debris 12616 | -5/Factory | Build established: Scavenger-Gunner 12847 | -5/Factory | Lost 6 parts (1p1n1u3w) 12921 | -5/Factory | Discovered new exit (range 10) 12948 | -5/Factory | Identified exit to Factory 12990 | -5/Factory | Entered another Factory area 12990 | -4/Factory | Evolved 2 slots: Power x1, Propulsion x1 13087 | -4/Factory | Build established: Scavenger-Skirmisher 13431 | -4/Factory | Build established: Skirmisher 13889 | -4/Factory | Discovered new exit (range 5) 13894 | -4/Factory | Identified exit to Upper Caves 13979 | -4/Factory | Entered Upper Caves 14248 | -4/Upper Caves | Build established: Tank 14404 | -4/Upper Caves | A Derelict revealed a hidden shortcut to "reach the base" 14405 | -4/Upper Caves | Identified exit to Warlord 14425 | -4/Upper Caves | Entered Warlord 14513 | -4/Warlord | Discovered new exit (range 9) 14525 | -4/Warlord | Identified exit to Proximity Caves 14713 | -4/Warlord | System corruption cleaned by Quarantine Array 14982 | -4/Warlord | Received a Watcher feed algorithm from an ecstatic Tinkerer 14982 | -4/Warlord | Ran a Watcher feed algorithm 14985 | -4/Warlord | Ran a Watcher feed algorithm 15027 | -4/Warlord | Opened side exit 15084 | -4/Warlord | Ran a Watcher feed algorithm 15239 | -4/Warlord | Met Warlord 15264 | -4/Warlord | Warlord's base attacked by MAIN.C 15406 | -4/Warlord | Found Prototype Energy Gun 15407 | -4/Warlord | Identified Vortex Rail 15413 | -4/Warlord | Found Prototype Energy Cannon 15413 | -4/Warlord | Identified Vortex Driver 15416 | -4/Warlord | Found Prototype Energy Gun 15416 | -4/Warlord | Identified Vortex Rifle 15422 | -4/Warlord | Found Vortex Rail 15614 | -4/Warlord | Warlord forces counterattacked 15754 | -4/Warlord | Spotted B-90 Cyclops 15756 | -4/Warlord | Spotted B-86 Titan 15791 | -4/Warlord | Lost 8 allies 15910 | -4/Warlord | Spotted Striker 15924 | -4/Warlord | Destroyed Striker 15939 | -4/Warlord | Warlord base infiltrated, sounded retreat 15966 | -4/Warlord | Lost 3 parts (1u2w) 15970 | -4/Warlord | Crushed by falling debris 15983 | -4/Warlord | Crushed by falling debris 15983 | -4/Warlord | System corruption reached 10% 16086 | -4/Warlord | Ran a Watcher feed algorithm 16173 | -4/Warlord | Spotted Executioner 16188 | -4/Warlord | Spotted B-86 Titan 16208 | -4/Warlord | Core integrity fell below 50% 16215 | -4/Warlord | Core integrity fell below 20% 16217 | -4/Warlord | Destroyed by S-27 Virus with Autogun Last Messages --------------- 16207_ Penetrated by Slug. 16207_ Slug penetrates Earth. 16207_ Core Analyzer destroyed. 16207_ System corrupted by crushing effect (+5). 16207_ Adv. Heat Sink destroyed. 16208_ Penetrated by Slug. 16208_ Lgt. Antimatter Reactor destroyed. 16208_ Slug penetrates Wall. 16208_ Slug penetrates Blast Doors. 16209_ Coil Gun+ destroyed. 16209_ Adv. Sensor Array severed. 16210_ Knocked back. 16210_ Penetrated by Slug. 16210_ Slug penetrates P-70 Sage. 16214_ UUG0 8J< %V3YJDDO8M7H=QG|99INW 16215_ P-80 Master resets B-74 Champion, system corruption cleaned. 16217_ Slug penetrates Wall. 16217_ Slug penetrates S-27 Virus. 16217_ S-27 Virus destroyed. Map ----- +----------------------------------------------------+ | " # + """#?????????????????????????????????? | | # # #########?????????????????????????????????? | | ## + ## #?????????????????????????????????? | | #### ## ] #?????????????????????????????????? | | #?# ## !!!* #?????????????????????????????????? | | # ## ##=%]*! #???????????####??????????????????? | | ?# # +!! %[ #??????????## ##????????#####????? | | ??#"^ ^##!= *==####??????## #???????## ###??? | | ??##^^^## =%!% ## #??????# #??????## ##?? | | ??## ## * ! ##??????# ##?????## > #?? | | ??# # ## #??????# #?????# #?? | | ??# " ####??????# ##????# ##?? | | ### " ##????????## #????# ##??? | | # " ! ###????????### ##???## #???? | | ### *" # #??????????## #????## ##???? | | ?#"" =""""####"# #??????????## #???### ##????? | | ?### #####??#####???????????# ##### ###???? | | ???# #??????## #???????????# ###?? | | ???# #???????####???????????## ### ### ##? | | ???# #???????????????????????## ##?# ^ #? | | ???# #????????????????????????### ^##?# #? | | ?#?# =#??????""#?????????????????# #?# ##? | | ?# # * ##????#""#???##?##??##?????## ### #?? | | ??#" ["#????#""### # # ## ####???## ### ##? | | #### #######""#"#;; % #????## #### #? | | #! # ""*=/ #;;;;@l;;;!#####?##^ ##" ##? | | #%*] " =""!/% = bb =; ## ##?? | | #=%=* ""[!% = si[! [ ##??? | | ]!!= =%%! [ % =!p;; =% ]%%% ##??? | | *%= % %*% = = ! p;g BBh%g %## " #? | | ! !% %=%!%%* % %;=EBB[ #% ??? | | * %=%% = = ;; !p * = ?? | | # # ""!!%= [! *= =% "## ! # #!% ?? | | # [ # ""=%/*=*" !"*"""#?##; #?# ?? | | ! ""= =*############???# #### / ?? | | # *% # #####""#####?????????????## #?# #?? | | !!%[ ## ##?#""#????????????????## ### !#?? | | =%== #???#""#????????????????# ### ##?? | | !![ ##????#""????????????????## ##?# #??? | | #?????""????????????????# #??## ##??? | | #### ##???????????????????????# #???## #???? | | #??# ##???????????????????????# ##????# #???? | | #??# #???????????????????????# #?????## ##??? | | ???# ##??????????????????????## ##????## #??? | | ???# #??????????????????????## ##??## #??? | | ???##+##??????????????????????#^ ##?# ^ #??? | | ???# #??????????????????##### ## ### #??? | | ???# [ #?????????????????## # #### ## #??? | | ???# !#?????????????????# #?## ## #??? | | ???# !#?????????????????# ##?# ## ##??? | +----------------------------------------------------+ Best States ------------- Heat Dissipation 62 Energy Generation 37 Energy Capacity 395 Matter Stores 300 Matter Capacity 300 Sight Range 16 Robot Scan Range 16 Terrain Scan Density 10 Jamming Range 14 Armor Coverage 750 Weapon Shielding 66 Weapon Cycling 20 Evasion (%) 42 Targeting Accuracy 6 Core Analysis 6 Armor Integrity Analysis 30 Recoil Reduction 6 Kinecelleration 40 Offensive Hacking 12 Item Schematics ----------------- Sml. Storage Unit | -10/Materials | Hacked Gauss Rifle | -5/Factory | Scanalyzed Adv. KE Penetrator | -5/Factory | Scanalyzed Arm. Huge Wheel | -5/Factory | Scanalyzed Robot Schematics ------------------ None Fabricated ------------ Adv. KE Penetrator | x1 | -5/Factory Repaired ---------- Autogun | 39% | -9/Materials Autogun | 43% | -9/Materials Hvy. Assault Rifle | 72% | -9/Materials Wheel | 55% | -9/Materials Lgt. Armor Plating | 67% | -9/Materials Autogun | 46% | -8/Materials Gauss Rifle | 39% | -6/Factory KE Penetrator | 1% | -5/Factory KE Penetrator | 11% | -5/Factory Adv. KE Penetrator | 12% | -5/Factory Arm. Huge Wheel | 6% | -5/Factory Studied --------- Autogun | -9/Materials | Hacked Hvy. Assault Rifle | -9/Materials | Hacked Wheel | -9/Materials | Hacked Gauss Rifle | -8/Materials | Hacked Minigun | -8/Materials | Hacked Hvy. Hammer | -8/Materials | Hacked Coil Gun | -6/Factory | Hacked KE Penetrator | -5/Factory | Hacked Arm. Huge Wheel | -5/Factory | Hacked Alien Tech Used ----------------- None Achievements -------------- A Powerful Ally? Knowing Is Half The Battle Network Effect Professional Mechanic Challenges ------------ None Game ------ Seed ReactionReflexDynamite Manual? 0 Play Time 04:43:34 Cumulative 18.2 hours Start 2026.09.10 @ 10:31:45 End 2026.09.12 @ 14:50:29 Sessions 5 Manual Loads 0 Difficulty Rogue Special Mode None Game No. 18 Rogue 18 Adventurer 0 Explorer 0 Win Type - Total 1 Types 1/0/0/0/0/0/0/0/0/0 Lore% 11 Gallery% 23 Achievement% 24 Wizard Run 0 Options --------- Layout 0 ASCII 0 Keyboard 0 Movement Numpad Keybinds 0 Fullscreen 1 Font 18/Terminus Map View 76x50 Zoom Use 0% Tactical HUD 1 Map Filters NONE Filters NONE Steam 1 RUN: 6ae69551-8df0-49ff-b78f-cd522d2802e7